bitfinex-derivatives/quotes_SOLF0:USTF0_20250523
["timestamp","ask_amount","ask_price","bid_price","bid_amount"]
[1747995733545,1.8841,186.61,186.53,0.03958695]
[1747995734054,5.3594,186.6,186.53,0.03958695]
[1747995734553,5.3595,186.59,186.56,5.3602]
[1747995734754,117.84,186.63,186.56,0.03852628]
[1747995736752,5.3596,186.59,186.56,0.03852628]
[1747995736945,117.84,186.63,186.56,0.03852628]
[1747995737348,5.3597,186.59,186.56,0.03852628]
[1747995737547,117.84,186.63,186.56,0.03852628]
[1747995737755,5.25103884,186.59,186.5,117.84]
[1747995737951,119.8051,186.58,186.5,117.84]
[1747995738151,5.25103884,186.56,186.46,117.84]
[1747995738351,5.25103884,186.56,186.46,123.2031]
[1747995738651,5.25103884,186.56,186.46,117.84]
[1747995738851,0.03480499,186.53,186.49,0.03810497]
[1747995739656,5.39600499,186.53,186.49,0.03810497]
[1747995740553,5.39600499,186.53,186.49,5.40040497]
[1747995740855,0.03480499,186.53,186.49,0.03810497]
[1747995741054,0.03480499,186.53,186.52,5.3615]
[1747995748968,0.03480499,186.53,186.52,107.2215]
[1747995749170,5.6918,186.63,186.58,5.3596]
[1747995749171,5.359,186.61,186.58,5.3596]
[1747995749469,5.6918,186.63,186.52,107.11103884]
[1747995749660,5.6918,186.63,186.56,5.3601]
[1747995750171,5.6918,186.63,186.58,0.03938864]
[1747995750971,5.3594,186.6,186.58,0.03938864]
[1747995751270,5.6918,186.63,186.58,0.03938864]
[1747995751568,5.3587,186.62,186.58,0.03938864]
[1747995751771,5.3587,186.62,186.58,5.39898864]
[1747995751977,1.9566,186.63,186.58,0.03938864]
[1747995752170,7.3151,186.63,186.58,0.03938864]
[1747995752468,7.3151,186.63,186.59,5.3593]
[1747995752664,5.3585,186.63,186.59,5.3593]
[1747995753269,123.1982,186.64,186.58,0.03938864]
[1747995753772,5.3582,186.64,186.58,0.03938864]
[1747995754876,1.9207,186.67,186.59,101.84]
[1747995755071,124.35651093,186.68,186.59,101.84]
[1747995755274,5.3576,186.66,186.63,5.3583]
[1747995755471,5.3576,186.66,186.63,5.39914776]
[1747995756166,5.3573,186.67,186.63,5.39914776]
[1747995756368,124.35651093,186.68,186.64,5.358]
[1747995756668,6.63651093,186.68,186.63,0.04084776]
[1747995757971,11.99351093,186.68,186.64,5.358]
[1747995758172,5.357,186.68,186.64,5.358]
[1747995759375,122.95103884,186.68,186.53,5.28246149]
[1747995759581,5.25103884,186.62,186.53,5.28246149]
[1747995759782,117.7,186.61,186.53,5.28246149]
[1747995760073,5.3604,186.56,186.53,5.28246149]
[1747995760475,5.3604,186.56,186.54,0.03747805]
[1747995762279,5.3606,186.55,186.54,0.03747805]
[1747995764475,5.3606,186.55,186.54,7.805e-05]
[1747995764675,124.90763884,186.56,186.45,117.72]
[1747995765679,0.03423927,186.52,186.49,0.03748133]
[1747995766181,5.3621,186.5,186.49,0.03748133]
[1747995768782,5.3619,186.51,186.49,0.03748133]
[1747995768982,0.03423927,186.52,186.49,0.03748133]
[1747995769485,5.3621,186.5,186.49,0.03748133]
[1747995771981,5.3621,186.5,186.49,8.133e-05]
[1747995772180,7.2088,186.5,186.49,8.133e-05]
[1747995782589,5.3644,186.42,186.37,121.3786]
[1747995782786,5.3644,186.42,186.37,119.4019]
[1747995783091,5.3644,186.42,186.37,124.7675]
[1747995783590,0.03682373,186.41,186.38,5.40100217]
[1747995783779,0.03682373,186.41,186.38,0.03550217]
[1747995784187,0.03682373,186.41,186.4,5.365]
[1747995787792,0.03682373,186.41,186.38,0.03550217]
[1747995788196,5.365,186.4,186.38,0.03550217]
[1747995788797,5.3652,186.39,186.38,0.03550217]
[1747995789398,5.3651,186.4,186.38,0.03550217]
[1747995789605,0.03682373,186.41,186.38,0.03550217]
[1747995791710,5.40162373,186.41,186.38,0.03550217]
[1747995791904,0.03682373,186.41,186.38,0.03550217]
[1747995792307,0.03682373,186.41,186.4,5.365]
[1747995793406,5.363,186.47,186.43,5.364]
[1747995793711,117.64,186.48,186.38,107.17103884]
[1747995794399,755.04,186.52,186.41,5.28973893]
[1747995794605,0.03938852,186.48,186.42,117.64]
[1747995794813,0.03938852,186.48,186.47,5.3628]
[1747995795912,0.03938852,186.48,186.46,5.3632]
[1747995796212,0.03938852,186.48,186.45,101.92]
[1747995796508,0.03938852,186.48,186.45,107.2833]
[1747995796715,0.03938852,186.48,186.45,101.92]
[1747995797008,5.40208852,186.48,186.45,101.92]
[1747995798116,5.40208852,186.48,186.43,5.40072873]
[1747995798508,5.363,186.47,186.43,5.40072873]
[1747995799116,5.363,186.47,186.43,0.03672873]
[1747995799715,5.363,186.47,186.43,5.40072873]
[1747995800115,0.03938852,186.48,186.43,0.03672873]
[1747995800612,5.3638,186.44,186.43,0.03672873]
[1747995801410,5.3636,186.45,186.43,0.03672873]
[1747995804618,5.3638,186.44,186.43,0.03672873]
[1747995806117,5.3638,186.44,186.43,2.873e-05]
[1747995806312,122.87103884,186.44,186.33,117.62]
[1747995806920,122.87103884,186.44,186.35,5.3662]
[1747995807412,5.3651,186.4,186.38,0.03656177]
[1747995807615,0.03914543,186.41,186.38,0.03656177]
[1747995808119,5.3652,186.39,186.38,0.03656177]
[1747995808723,123.0052,186.39,186.38,0.03656177]
[1747995811723,5.3661,186.36,186.35,3.94727298]
[1747995812022,5.3661,186.36,186.32,5.26323376]
[1747995812023,5.25103884,186.36,186.32,5.26323376]
[1747995812325,5.367,186.33,186.32,5.26323376]
[1747995812823,117.44,186.34,186.32,5.26323376]
[1747995812824,122.84555004,186.34,186.32,5.26323376]
[1747995813027,5.40555004,186.34,186.31,0.03716896]
[1747995813321,0.03885004,186.34,186.31,0.03716896]
[1747995814627,5.40555004,186.34,186.31,0.03716896]
[1747995815525,0.03885004,186.34,186.31,0.03716896]
[1747995815825,0.03885004,186.34,186.31,5.40466896]
[1747995816728,0.03885004,186.34,186.31,0.03716896]
[1747995817428,0.03885004,186.34,186.31,5.40466896]
[1747995818627,5.40555004,186.34,186.31,5.40466896]
[1747995819625,0.03885004,186.34,186.31,5.40466896]
[1747995819928,0.03885004,186.34,186.32,5.3672]
[1747995821433,0.03885004,186.34,186.33,5.367]
[1747995822326,0.03885004,186.34,186.32,5.3672]
[1747995822525,5.367,186.33,186.31,0.03716896]
[1747995824530,5.3673,186.32,186.31,0.03716896]
[1747995825628,5.3671,186.33,186.31,0.03716896]
[1747995826232,5.3673,186.32,186.31,0.03716896]
[1747995829028,5.3687,186.27,186.23,117.48]
[1747995829231,117.48,186.32,186.23,117.48]
[1747995829433,5.3683,186.29,186.23,117.48]
[1747995829633,117.48,186.32,186.23,117.48]
[1747995829833,117.48,186.32,186.25,5.369]
[1747995830135,0.0397041,186.29,186.26,0.03842806]
[1747995830334,0.0397041,186.29,186.26,5.40732806]
[1747995830626,0.0397041,186.29,186.26,0.03842806]
[1747995831133,0.0397041,186.29,186.27,5.3687]
[1747995831334,0.0397041,186.29,186.26,0.03842806]
[1747995831638,0.0397041,186.29,186.26,5.40732806]
[1747995831932,5.4079041,186.29,186.26,5.40732806]
[1747995832535,5.4079041,186.29,186.26,0.03842806]
[1747995833325,5.4079041,186.29,186.26,5.40742806]
[1747995833629,5.4079041,186.29,186.26,0.03842806]
[1747995833836,5.3685,186.28,186.26,0.03842806]
[1747995834930,5.4079041,186.29,186.26,0.03842806]
[1747995835134,5.4079041,186.29,186.26,5.40722806]
[1747995836135,5.4079041,186.29,186.26,0.03842806]
[1747995836633,5.3685,186.28,186.26,0.03842806]
[1747995837234,5.3687,186.27,186.26,0.03842806]
[1747995838335,5.3685,186.28,186.26,0.03842806]
[1747995840741,5.4080041,186.29,186.26,0.03842806]
[1747995841640,0.0397041,186.29,186.26,5.40722806]
[1747995842638,5.4079041,186.29,186.26,5.40722806]
[1747995842843,0.0397041,186.29,186.26,5.40722806]
[1747995843140,0.0397041,186.29,186.28,5.3684]
[1747995844442,0.0397041,186.29,186.26,0.03842806]
[1747995844835,5.3687,186.27,186.26,0.03842806]
[1747995845635,5.3701,186.23,186.2,117.24]
[1747995845841,117.22,186.28,186.18,3.7351]
[1747995846239,117.22,186.28,186.19,5.3709]
[1747995846440,117.22,186.28,186.18,3.7351]
[1747995846645,0.03735991,186.25,186.21,0.03744042]
[1747995847244,5.40685991,186.25,186.21,5.40784042]
[1747995847445,0.03735991,186.25,186.21,0.03744042]
[1747995847748,0.03735991,186.25,186.23,5.3696]
[1747995847945,0.03735991,186.25,186.21,0.03744042]
[1747995848346,0.03735991,186.25,186.23,5.3697]
[1747995848549,0.03735991,186.25,186.21,0.03744042]
[1747995849245,5.3699,186.23,186.21,0.03744042]
[1747995849540,0.03735991,186.25,186.21,0.03744042]
[1747995850549,5.37,186.23,186.21,0.03744042]
[1747995852145,5.3701,186.22,186.21,0.03744042]
[1747995852350,474.41274396,186.22,186.11,5.23488736]
[1747995852542,5.3727,186.14,186.11,5.23488736]
[1747995852744,122.6127,186.14,186.11,5.23488736]
[1747995853347,5.3728,186.13,186.11,5.27007691]
[1747995853853,5.373,186.12,186.11,5.27007691]
[1747995854055,117.27910443,186.14,186.11,5.27007691]
[1747995854357,5.3729,186.13,186.11,5.27007691]
[1747995854851,0.03910443,186.14,186.11,5.27007691]
[1747995855751,0.03910443,186.14,186.11,0.03518955]
[1747995856852,5.41160443,186.14,186.11,0.03518955]
[1747995857054,0.03910443,186.14,186.11,5.40848955]
[1747995859763,0.03910443,186.14,186.12,5.373]
[1747995859964,0.03910443,186.14,186.11,0.03518955]
[1747995860162,0.03910443,186.14,186.12,5.373]
[1747995860464,0.03910443,186.14,186.11,0.03518955]
[1747995860768,0.03910443,186.14,186.12,5.373]
[1747995862470,0.03910443,186.14,186.13,5.3727]
[1747995862866,0.03910443,186.14,186.11,0.03518955]
[1747995863078,463.88,186.22,186.12,117.3]
[1747995863266,463.88,186.22,186.13,5.8236]
[1747995863463,117.3,186.23,186.13,5.8236]
[1747995863666,117.3,186.23,186.15,5.3721]
[1747995864064,117.3,186.23,186.13,5.8236]
[1747995864065,117.3,186.23,186.17,0.03416161]
[1747995864266,0.03431763,186.21,186.17,0.03416161]
[1747995864664,5.3713,186.18,186.17,0.03416161]
[1747995867967,122.6713,186.18,186.17,0.03416161]
[1747995881383,5.3713,186.18,186.17,0.03416161]
[1747995881778,5.3711,186.19,186.17,0.03416161]
[1747995883277,122.4508,186.2,186.17,0.03416161]
[1747995883673,117.08,186.2,186.17,0.03416161]
[1747995883878,5.3712,186.19,186.17,0.03416161]
[1747995885384,5.3713,186.18,186.17,0.03416161]
[1747995886487,5.3711,186.19,186.17,0.03416161]
[1747995886689,117.08,186.2,186.17,5.40556161]
[1747995887877,0.03431763,186.21,186.17,0.03416161]
[1747995888488,5.3709,186.2,186.17,5.40546161]
[1747995888783,0.03431763,186.21,186.17,0.03416161]
[1747995889581,0.03431763,186.21,186.19,5.3709]
[1747995890282,0.03431763,186.21,186.17,0.03416161]
[1747995890787,0.03431763,186.21,186.19,5.3708]
[1747995891191,0.03431763,186.21,186.17,0.03416161]
[1747995891387,0.03431763,186.21,186.19,5.3708]
[1747995892189,0.03431763,186.21,186.2,5.3707]
[1747995892388,0.03431763,186.21,186.17,0.03416161]
[1747995892589,5.3713,186.18,186.17,0.03416161]
[1747995904096,5.3713,186.18,186.17,6.161e-05]
[1747995904297,5.3733,186.11,186.1,3.93333663]
[1747995905199,5.3728,186.13,186.1,3.93333663]
[1747995905399,0.03827959,186.12,186.1,3.93333663]
[1747995906002,5.41137959,186.12,186.1,3.93333663]
[1747995906299,5.41137959,186.12,186.09,0.03404866]
[1747995906502,0.03827959,186.12,186.09,0.03404866]
[1747995906702,5.3736,186.1,186.09,0.03404866]
[1747995907006,5.26181992,186.11,186.05,3.93333663]
[1747995907295,5.26181992,186.08,186.03,5.23488736]
[1747995907499,1.8963,186.07,186.03,8.736e-05]
[1747995907699,5.26181992,186.05,186.0,7.85263434]
[1747995907895,116.82,186.04,186.0,7.85263434]
[1747995908100,5.3762,186.01,186.0,1.958e-05]
[1747995908906,122.1962,186.01,186.0,1.958e-05]
[1747995922106,122.2962,186.01,186.0,1.958e-05]
[1747995929221,122.18181992,186.01,185.87,3.683]
[1747995929414,122.18181992,186.01,185.88,1.9159]
[1747995929614,122.18181992,186.01,185.89,5.3796]
[1747995929815,116.92,186.03,185.88,7.17771992]
[1747995930115,0.03851646,185.97,185.94,0.03440485]
[1747995930313,5.3779,185.95,185.94,0.03440485]
[1747995930705,0.03851646,185.97,185.94,0.03440485]
[1747995930914,116.92,185.96,185.94,0.03440485]
[1747995931315,5.3776,185.96,185.94,0.03440485]
[1747995931920,0.03851646,185.97,185.94,0.03440485]
[1747995932324,5.3779,185.95,185.94,0.03440485]
[1747995937332,0.03851646,185.97,185.94,0.03440485]
[1747995938030,5.3779,185.95,185.94,0.03440485]
[1747995939218,5.3779,185.95,185.88,1.9159]
[1747995939219,5.3797,185.89,185.88,1.9159]
[1747995939420,116.72,185.95,185.87,3.683]
[1747995939628,5.26181992,185.94,185.87,3.683]
[1747995940133,116.72,185.93,185.87,3.683]
[1747995940333,5.3793,185.91,185.88,0.03887926]
[1747995941123,0.03688107,185.92,185.88,0.03887926]
[1747995941124,5.41578107,185.92,185.88,0.03887926]
[1747995941837,0.03688107,185.92,185.88,0.03887926]
[1747995942531,0.03688107,185.92,185.89,5.3795]
[1747995942934,0.03688107,185.92,185.88,0.03887926]
[1747995944038,0.03688107,185.92,185.9,5.3793]
[1747995944640,0.03688107,185.92,185.91,5.3791]
[1747995945243,0.03688107,185.92,185.9,5.3793]
[1747995945628,9.92926395,186.07,185.9,314.38]
[1747995945832,9.92926395,186.07,185.97,5.26181992]
[1747995946033,9.92926395,186.07,186.0,5.26181992]
[1747995946331,13.2390186,186.12,186.03,5.26181992]
[1747995946638,0.03676401,186.09,186.06,0.03648193]
[1747995946839,0.03676401,186.09,186.08,5.3742]
[1747995947030,0.03676401,186.09,186.06,0.03648193]
[1747995947031,13.2390186,186.12,186.06,5.29830185]
[1747995947738,3.47876586,186.12,186.11,5.3733]
[1747995947943,116.74,186.2,186.09,122.00181992]
[1747995948132,0.03912245,186.16,186.13,0.03821163]
[1747995948338,0.03912245,186.16,186.15,5.3721]
[1747995951241,1.8625,186.27,186.21,5.3703]
[1747995951534,116.68,186.26,186.21,5.3703]
[1747995951742,122.0492,186.26,186.21,5.3703]
[1747995952244,0.03509669,186.25,186.22,0.03663449]
[1747995952947,5.40449669,186.25,186.22,0.03663449]
[1747995953438,5.3698,186.23,186.22,0.03663449]
[1747995954347,5.3696,186.24,186.22,0.03663449]
[1747995954542,0.03509669,186.25,186.22,0.03663449]
[1747995954943,5.3698,186.23,186.22,0.03663449]
[1747995957944,0.03509669,186.25,186.14,116.74]
[1747995958143,116.68,186.26,186.14,116.74]
[1747995958949,0.03938461,186.22,186.18,0.04119818]
[1747995959541,5.371,186.19,186.18,0.04119818]
[1747995960743,5.372,186.16,186.01,464.68]
[1747995960948,5.372,186.16,186.05,102.08]
[1747995961136,116.6,186.21,186.05,102.08]
[1747995961451,5.3716,186.17,186.11,5.3731]
[1747995961641,5.3716,186.17,186.1,116.6]
[1747995961841,0.03519552,186.15,186.12,0.04006864]
[1747995963549,16.11,186.49,186.14,8.56406133]
[1747995963741,1.8164,186.41,186.19,8.56406133]
[1747995963944,1.8039,186.4,186.25,8.56406133]
[1747995964142,1.8039,186.4,186.26,218.68]
[1747995964544,0.04087301,186.35,186.31,0.03963392]
[1747995965247,5.40747301,186.35,186.31,0.03963392]
[1747995965650,5.3667,186.34,186.31,0.03963392]
[1747995965958,0.04087301,186.35,186.26,116.58]
[1747995966142,1.8074,186.33,186.22,116.4]
[1747995966756,5.3683,186.29,186.22,121.7699]
[1747995967052,0.03416803,186.27,186.24,0.03413074]
[1747995968353,0.03416803,186.27,186.24,5.40353074]
[1747995968854,0.03416803,186.27,186.24,0.03413074]
[1747995970950,5.369,186.26,186.24,0.03413074]
[1747995971251,0.03416803,186.27,186.24,0.03413074]
[1747995973154,0.03416803,186.27,186.18,116.36]
[1747995973354,1.8099,186.3,186.18,116.36]
[1747995973550,5.3702,186.22,186.18,116.36]
[1747995973758,1.8099,186.3,186.18,116.36]
[1747995974055,116.36,186.29,186.18,116.36]
[1747995974258,0.04115758,186.25,186.22,0.0386164]
[1747995974852,5.41065758,186.25,186.22,0.0386164]
[1747995976060,0.04115758,186.25,186.22,0.0386164]
[1747995976556,0.04115758,186.25,186.24,5.3695]
[1747995976763,0.04115758,186.25,186.23,116.36]
[1747995978766,0.04115758,186.25,186.22,0.0386164]
[1747995979460,0.04115758,186.25,186.17,218.38]
[1747995979660,0.04115758,186.25,186.19,8.56406133]
[1747995979964,1.8113,186.32,186.19,8.56406133]
[1747995980365,1.8113,186.32,186.27,5.3686]
[1747995980861,0.03608283,186.31,186.3,5.3678]
[1747995981165,0.03414753,186.32,186.29,0.03727396]
[1747995982768,0.03414753,186.32,186.29,5.40517396]
[1747995982963,0.03414753,186.32,186.29,0.03727396]
[1747995984166,0.03414753,186.32,186.25,116.34]
[1747995984370,116.37414753,186.32,186.2,116.34]
[1747995984672,5.3685,186.28,186.23,5.3697]
[1747995985071,1.9544,186.3,186.23,5.3697]
[1747995985272,5.3687,186.27,186.25,0.03997535]
[1747995985471,0.03484711,186.28,186.25,0.03997535]
[1747995986376,0.03484711,186.28,186.25,5.40917535]
[1747995987876,0.03484711,186.28,186.25,0.03997535]
[1747995988280,0.03484711,186.28,186.25,5.40897535]
[1747995989271,0.03484711,186.28,186.25,0.03997535]
[1747995990178,5.40344711,186.28,186.25,0.03997535]
[1747995990679,5.3687,186.27,186.25,0.03997535]
[1747995990875,0.03484711,186.28,186.25,0.03997535]
[1747995991081,0.03484711,186.28,186.2,116.34]
[1747995991785,5.3697,186.24,186.2,116.34]
[1747995991974,0.03962342,186.24,186.2,116.37653294]
[1747995992170,0.03962342,186.24,186.2,0.03653294]
[1747995992583,5.3699,186.23,186.2,0.03653294]
[1747995992775,0.03962342,186.24,186.21,116.34]
[1747995993083,0.03962342,186.24,186.2,0.03653294]
[1747995994585,0.03962342,186.24,186.21,5.3702]
[1747995995174,0.03962342,186.24,186.2,5.40713294]
[1747995995579,0.03962342,186.24,186.2,0.03653294]
[1747995995880,5.40922342,186.24,186.2,0.03653294]
[1747995996275,0.03962342,186.24,186.2,0.03653294]
[1747995997387,5.40942342,186.24,186.2,0.03653294]
[1747995998083,5.3699,186.23,186.2,0.03653294]
[1747995998587,5.40922342,186.24,186.2,0.03653294]
[1747996000088,5.40922342,186.24,186.2,5.40723294]
[1747996000292,0.03962342,186.24,186.2,0.03653294]
[1747996000583,0.03962342,186.24,186.2,5.40703294]
[1747996002187,5.40932342,186.24,186.2,5.40703294]
[1747996002385,0.03962342,186.24,186.21,5.3704]
[1747996002587,0.03962342,186.24,186.2,0.03653294]
[1747996002977,0.03962342,186.24,186.23,5.3698]
[1747996003180,1.8395,186.31,186.22,116.26]
[1747996003585,5.368,186.3,186.25,5.369]
[1747996004089,0.0351087,186.29,186.26,0.03420107]
[1747996006090,5.4034087,186.29,186.26,0.03420107]
[1747996006486,0.0351087,186.29,186.26,0.03420107]
[1747996006689,0.0351087,186.29,186.28,5.3684]
[1747996007483,0.0351087,186.29,186.26,0.03420107]
[1747996009088,0.0351087,186.29,186.28,5.3684]
[1747996010284,0.0351087,186.29,186.26,0.03420107]
[1747996010491,116.2951087,186.29,186.2,5.2371461]
[1747996010796,5.3703,186.22,186.2,5.2371461]
[1747996010993,1.7916,186.28,186.2,5.2371461]
[1747996011390,0.04087186,186.26,186.22,0.03529924]
[1747996012190,116.30087186,186.26,186.22,0.03529924]
[1747996012595,5.3698,186.23,186.22,0.03529924]
[1747996018501,5.3712,186.19,186.14,5.3723]
[1747996019497,5.3712,186.19,186.15,0.04067525]
[1747996019799,0.03593213,186.18,186.15,0.04067525]
[1747996020200,5.40723213,186.18,186.15,0.04067525]
[1747996020396,0.03593213,186.18,186.15,0.04067525]
[1747996020595,0.03593213,186.18,186.15,5.41267525]
[1747996021200,5.40723213,186.18,186.15,0.04067525]
[1747996021901,0.03593213,186.18,186.15,0.04067525]
[1747996022401,0.03593213,186.18,186.15,5.41277525]
[1747996022601,5.40733213,186.18,186.15,5.41277525]
[1747996024399,0.03593213,186.18,186.15,0.04067525]
[1747996025405,5.3719,186.16,186.15,0.04067525]
[1747996025807,0.03593213,186.18,186.15,0.04067525]
[1747996026502,0.03593213,186.18,186.15,5.41267525]
[1747996026903,0.03593213,186.18,186.16,5.3716]
[1747996027811,0.03593213,186.18,186.17,5.3716]
[1747996028205,0.03593213,186.18,186.15,0.04067525]
[1747996028405,0.03593213,186.18,186.17,5.3716]
[1747996040717,0.03593213,186.18,186.17,10.63349055]
[1747996041526,3.77111797,186.25,186.22,5.3699]
[1747996041728,119.8537,186.27,186.17,5.26189055]
[1747996041915,119.8537,186.27,186.16,116.2]
[1747996042222,119.8537,186.27,186.18,5.3712]
[1747996042719,0.03674062,186.24,186.2,0.04051923]
[1747996043925,0.03674062,186.24,186.09,6.1456461]
[1747996044224,5.26189055,186.23,186.1,116.2]
[1747996044425,116.2,186.22,186.14,5.3722]
[1747996044723,116.2,186.22,186.12,5.26189055]
[1747996044916,0.03867064,186.19,186.15,0.04132177]
[1747996045226,0.03867064,186.19,186.16,5.3718]
[1747996045823,0.03867064,186.19,186.17,5.3716]
[1747996046025,0.03867064,186.19,186.15,0.04132177]
[1747996047025,5.40967064,186.19,186.16,5.3718]
[1747996047426,0.03867064,186.19,186.16,5.3718]
[1747996048125,0.03867064,186.19,186.17,5.3716]
[1747996048424,0.03867064,186.19,186.15,0.04132177]
[1747996048620,5.3718,186.17,186.15,0.04132177]
[1747996048825,0.03867064,186.19,186.15,0.04132177]
[1747996049022,5.3717,186.17,186.15,0.04132177]
[1747996049227,0.03867064,186.19,186.15,0.04132177]
[1747996049729,5.3718,186.17,186.15,0.04132177]
[1747996050730,5.3719,186.16,186.15,0.04132177]
[1747996051633,5.3717,186.17,186.15,0.04132177]
[1747996052734,0.03867064,186.19,186.15,0.04132177]
[1747996053429,5.3718,186.17,186.15,0.04132177]
[1747996053636,0.03867064,186.19,186.15,0.04132177]
[1747996054632,5.40967064,186.19,186.17,5.3715]
[1747996055234,5.40967064,186.19,186.16,5.3718]
[1747996055435,0.03867064,186.19,186.15,0.04132177]
[1747996055640,0.03867064,186.19,186.15,5.41322177]
[1747996055948,5.40977064,186.19,186.15,5.41322177]
[1747996056247,0.03867064,186.19,186.16,5.3717]
[1747996056443,0.03867064,186.19,186.15,0.04132177]
[1747996056947,0.03867064,186.19,186.17,5.3714]
[1747996058151,0.03867064,186.19,186.16,5.3718]
[1747996058548,0.03867064,186.19,186.15,0.04132177]
[1747996058745,0.03867064,186.19,186.17,5.3714]
[1747996059349,0.03867064,186.19,186.18,5.3713]
[1747996071864,8.63769634,186.27,186.18,5.26189055]
[1747996072061,3.6537,186.27,186.19,116.08]
[1747996072764,0.03894554,186.25,186.21,0.03639254]
[1747996074063,5.3697,186.24,186.21,0.03639254]
[1747996074263,0.03894554,186.25,186.21,0.03639254]
[1747996074462,5.40844554,186.25,186.22,5.37]
[1747996074862,0.03894554,186.25,186.21,0.03639254]
[1747996075164,0.03894554,186.25,186.22,5.3701]
[1747996075567,5.40824554,186.25,186.22,5.3701]
[1747996076066,5.40824554,186.25,186.21,5.40659254]
[1747996076366,5.40824554,186.25,186.21,0.03639254]
[1747996076567,0.03894554,186.25,186.21,0.03639254]
[1747996076956,0.03894554,186.25,186.22,5.3699]
[1747996078067,5.40834554,186.25,186.21,5.40659254]
[1747996078267,0.03894554,186.25,186.21,0.03639254]
[1747996078768,0.03894554,186.25,186.22,5.3699]
[1747996080068,0.03894554,186.25,186.23,5.3698]
[1747996080467,0.03894554,186.25,186.21,0.03639254]
[1747996080667,0.03894554,186.25,186.23,5.3697]
[1747996080964,0.03894554,186.25,186.21,0.03639254]
[1747996081169,0.03894554,186.25,186.24,5.3696]
[1747996081468,0.03894554,186.25,186.21,0.03639254]
[1747996081873,0.03894554,186.25,186.22,5.3701]
[1747996083070,0.03894554,186.25,186.23,5.3698]
[1747996083373,0.03894554,186.25,186.21,0.03639254]
[1747996083668,0.03894554,186.25,186.22,5.37]
[1747996084371,5.3699,186.23,186.21,0.03639254]
[1747996084568,0.03894554,186.25,186.21,0.03639254]
[1747996085070,5.3702,186.23,186.21,0.03639254]
[1747996085970,0.03894554,186.25,186.17,3.9906019]
[1747996086160,115.86,186.24,186.17,3.9906019]
[1747996086360,5.26189055,186.22,186.12,7.83249241]
[1747996086565,5.3721,186.16,186.12,7.83249241]
[1747996086770,5.3721,186.16,186.08,121.12189055]
[1747996086963,0.03860162,186.14,186.1,0.03533163]
[1747996087568,0.03860162,186.14,186.12,5.3729]
[1747996088272,0.03860162,186.14,186.11,5.3733]
[1747996089272,5.41110162,186.14,186.11,5.3733]
[1747996089581,0.03860162,186.14,186.11,5.3733]
[1747996090776,0.03860162,186.14,186.1,5.40893163]
[1747996091675,0.03860162,186.14,186.11,5.3733]
[1747996092576,0.03860162,186.14,186.1,0.03533163]
[1747996093077,0.03860162,186.14,186.1,5.29722218]
[1747996093475,0.03860162,186.14,186.13,5.3728]
[1747996094978,0.03860162,186.14,186.12,5.373]
[1747996095680,0.03860162,186.14,186.13,5.3728]
[1747996096481,0.03860162,186.14,186.12,5.373]
[1747996097175,0.03860162,186.14,186.13,5.3728]
[1747996100386,0.03860162,186.14,186.13,126.51469055]
[1747996100578,1.8108,186.23,186.17,5.3715]
[1747996100878,5.3704,186.22,186.13,121.14189055]
[1747996101074,5.3704,186.22,186.18,5.3711]
[1747996101272,1.8108,186.23,186.18,5.3711]
[1747996101470,1.8108,186.23,186.13,121.14189055]
[1747996101786,0.03411388,186.22,186.2,5.3707]
[1747996105390,0.03411388,186.22,186.19,5.40722183]
[1747996106191,0.03411388,186.22,186.2,5.3707]
[1747996107495,0.03411388,186.22,186.19,5.40722183]
[1747996107696,0.03411388,186.22,186.19,0.03622183]
[1747996107989,0.03411388,186.22,186.19,5.40712183]
[1747996108487,5.3706,186.21,186.19,0.03622183]
[1747996108689,0.03411388,186.22,186.19,0.03622183]
[1747996110294,5.3707,186.21,186.19,0.03622183]
[1747996110994,5.40441388,186.22,186.19,0.03622183]
[1747996111299,0.03411388,186.22,186.19,0.03622183]
[1747996111794,0.03411388,186.22,186.19,5.40722183]
[1747996112101,5.40431388,186.22,186.19,0.03622183]
[1747996113910,0.03411388,186.22,186.19,5.40712183]
[1747996114703,0.03411388,186.22,186.2,5.3707]
[1747996115608,0.03411388,186.22,186.21,5.3705]
[1747996119610,0.03411388,186.22,186.21,107.4105]
[1747996121016,5.368,186.3,186.27,5.3688]
[1747996121217,119.5343,186.31,186.27,5.3688]
[1747996121416,119.5343,186.31,186.21,102.04]
[1747996121417,119.5343,186.31,186.23,115.74]